fUSD/lending_fUSD_20251229
["ID","MTS","AMOUNT","RATE_DAILY","PERIOD"]
[400007640,1767013844912,-481.65,0.00041452,30]
[400007641,1767013844922,-481.65,0.00041452,30]
[400007642,1767013844931,-481.65,0.00041452,30]
[400007643,1767013844940,-156.3,0.00041468,120]
[400007644,1767013844952,-3408.2992385,0.00041483,2]
[400007645,1767013844962,-24129.092185,0.00041483,2]
[400007646,1767013844971,-151.0,0.00041497,14]
[400007647,1767013844980,-154.17002449,0.00041497,14]
[400007648,1767013844990,-300.0,0.00041499,30]
[400007649,1767013845000,-300.0,0.00041499,30]
[400007650,1767013845010,-666.0,0.00041499,30]
[400007651,1767013845019,-300.0,0.00041499,30]
[400007652,1767013845028,-150.0,0.00041499,2]
[400007653,1767013845037,-153.0,0.00041499,14]
[400007654,1767013845047,-153.0,0.00041499,14]
[400007655,1767013845056,-153.0,0.00041499,14]
[400007656,1767013845065,-153.0,0.00041499,14]
[400007657,1767013845074,-153.0,0.00041499,14]
[400007658,1767013845083,-235.0,0.00041499,14]
[400007659,1767013845093,-152.0,0.00041499,14]
[400007660,1767013845103,-1257.0,0.00041499,14]
[400007661,1767013845113,-151.0,0.00041499,14]
[400007662,1767013845123,-1257.0,0.00041499,14]
[400007663,1767013845134,-152.0,0.00041499,14]
[400007664,1767013845143,-151.0,0.00041499,14]
[400007665,1767013845153,-1257.0,0.00041499,14]
[400007666,1767013845164,-151.0,0.00041499,14]
[400007667,1767013845173,-152.0,0.00041499,14]
[400007668,1767013845183,-1257.0,0.00041499,14]
[400007669,1767013845194,-151.0,0.00041499,14]
[400007670,1767013845204,-152.0,0.00041499,14]
[400007671,1767013845214,-1257.0,0.00041499,14]
[400007672,1767013845223,-151.0,0.00041499,14]
[400007673,1767013845235,-152.0,0.00041499,14]
[400007674,1767013845246,-151.0,0.00041499,14]
[400007675,1767013845257,-1257.0,0.00041499,14]
[400007676,1767013845266,-153.0,0.00041499,14]
[400007677,1767013845277,-152.0,0.00041499,14]
[400007678,1767013845287,-1257.0,0.00041499,14]
[400007679,1767013845296,-151.0,0.00041499,14]
[400007680,1767013845306,-153.0,0.00041499,14]
[400007681,1767013845315,-152.0,0.00041499,14]
[400007682,1767013845325,-151.0,0.00041499,14]
[400007683,1767013845334,-153.0,0.00041499,14]
[400007684,1767013845345,-152.0,0.00041499,14]
[400007685,1767013845354,-1257.0,0.00041499,14]
[400007686,1767013845364,-153.0,0.00041499,14]
[400007688,1767013845373,-152.0,0.00041499,14]
[400007689,1767013845383,-1257.0,0.00041499,14]
[400007690,1767013845393,-151.0,0.00041499,14]
[400007691,1767013845403,-153.0,0.00041499,14]
[400007692,1767013845413,-152.0,0.00041499,14]
[400007693,1767013845423,-1257.0,0.00041499,14]
[400007694,1767013845433,-151.0,0.00041499,14]
[400007695,1767013845443,-235.0,0.00041499,14]
[400007696,1767013845596,-152.0,0.00041499,14]
[400007697,1767013845607,-151.0,0.00041499,14]
[400007698,1767013845617,-1257.0,0.00041499,14]
[400007699,1767013845627,-153.0,0.00041499,14]
[400007700,1767013845638,-152.0,0.00041499,14]
[400007701,1767013845647,-151.0,0.00041499,14]
[400007702,1767013845658,-153.0,0.00041499,14]
[400007703,1767013845668,-1257.0,0.00041499,14]
[400007704,1767013845678,-151.0,0.00041499,14]
[400007705,1767013845689,-152.0,0.00041499,14]
[400007706,1767013845698,-1257.0,0.00041499,14]
[400007707,1767013845708,-153.0,0.00041499,14]
[400007708,1767013845717,-152.0,0.00041499,14]
[400007709,1767013845727,-151.0,0.00041499,14]
[400007710,1767013845738,-1257.0,0.00041499,14]
[400007711,1767013845749,-153.0,0.00041499,14]
[400007712,1767013845760,-152.0,0.00041499,14]
[400007713,1767013845772,-1257.0,0.00041499,14]
[400007714,1767013845784,-153.0,0.00041499,14]
[400007715,1767013845793,-151.0,0.00041499,14]
[400007716,1767013845805,-152.0,0.00041499,14]
[400007717,1767013845817,-1257.0,0.00041499,14]
[400007718,1767013845827,-235.0,0.00041499,14]
[400007719,1767013845838,-151.0,0.00041499,14]
[400007720,1767013845848,-1257.0,0.00041499,14]
[400007721,1767013845858,-151.0,0.00041499,14]
[400007723,1767013845871,-1257.0,0.00041499,14]
[400007724,1767013845882,-152.0,0.00041499,14]
[400007725,1767013845893,-151.0,0.00041499,14]
[400007726,1767013845902,-1257.0,0.00041499,14]
[400007727,1767013845912,-152.0,0.00041499,14]
[400007728,1767013845922,-1257.0,0.00041499,14]
[400007730,1767013845932,-151.0,0.00041499,14]
[400007732,1767013845942,-151.0,0.00041499,14]
[400007734,1767013845952,-1257.0,0.00041499,14]
[400007735,1767013845961,-1257.0,0.00041499,14]
[400007736,1767013845970,-151.0,0.00041499,14]
[400007737,1767013845980,-152.0,0.00041499,14]
[400007738,1767013845990,-1257.0,0.00041499,14]
[400007739,1767013846000,-151.0,0.00041499,14]
[400007740,1767013846009,-1257.0,0.00041499,14]
[400007741,1767013846018,-1257.0,0.00041499,14]
[400007742,1767013846027,-151.0,0.00041499,14]
[400007744,1767013846036,-152.0,0.00041499,14]
[400007745,1767013846046,-1257.0,0.00041499,14]
[400007746,1767013846055,-151.0,0.00041499,14]
[400007747,1767013846065,-1257.0,0.00041499,14]
[400007748,1767013846074,-152.0,0.00041499,14]
[400007749,1767013846083,-151.0,0.00041499,14]
[400007750,1767013846093,-152.0,0.00041499,14]
[400007751,1767013846102,-1257.0,0.00041499,14]
[400007752,1767013846111,-1101.52601387,0.00041499,14]
[400007753,1767013846121,-152.0,0.00041499,14]
[400007754,1767013846130,-152.0,0.00041499,14]
[400007755,1767013846141,-152.0,0.00041499,14]
[400007756,1767013846150,-152.0,0.00041499,14]
[400007757,1767013846159,-152.0,0.00041499,14]
[400007758,1767013846168,-152.0,0.00041499,14]
[400007759,1767013846177,-151.0,0.00041499,14]
[400007760,1767013846186,-206.21647338,0.00041499,14]
[400007761,1767013846196,-151.0,0.00041499,14]
[400007762,1767013846205,-151.0,0.00041499,14]
[400007763,1767013846215,-151.0,0.00041499,14]
[400007764,1767013846224,-151.0,0.00041499,14]
[400007765,1767013846233,-151.0,0.00041499,14]
[400007766,1767013846243,-151.0,0.00041499,14]
[400007767,1767013846251,-151.0,0.00041499,14]
[400007768,1767013846261,-151.0,0.00041499,14]
[400007769,1767013846270,-151.0,0.00041499,14]
[400007770,1767013846279,-151.0,0.00041499,14]
[400007771,1767013846289,-151.0,0.00041499,14]
[400007772,1767013846298,-199.9866639,0.00041499,14]
[400007773,1767013846308,-151.0,0.00041499,14]
[400007774,1767013846317,-151.0,0.00041499,14]
[400007775,1767013846327,-159.64913359,0.00041499,14]
[400007776,1767013846337,-500.0,0.00041499,120]
[400007777,1767013846346,-500.0,0.00041499,120]
[400007778,1767013846356,-500.0,0.00041499,120]
[400007779,1767013846365,-500.0,0.00041499,120]
[400007780,1767013846376,-846.86,0.00041499,120]
[400007781,1767013846386,-846.86,0.00041499,120]
[400007782,1767013846398,-846.86,0.00041499,120]
[400007783,1767013846409,-846.86,0.00041499,120]
[400007784,1767013846419,-672.91,0.00041499,120]
[400007785,1767013846428,-672.91,0.00041499,120]
[400007786,1767013846438,-672.91,0.00041499,120]
[400007787,1767013846448,-672.91,0.00041499,120]
[400007788,1767013846457,-500.0,0.00041499,120]
[400007789,1767013846467,-500.0,0.00041499,120]
[400007790,1767013846476,-510.29771548,0.00041499,120]
[400007791,1767013846485,-1405.01,0.00041499,120]
[400007792,1767013846495,-1405.01,0.00041499,120]
[400007793,1767013846506,-1405.01,0.00041499,120]
[400007794,1767013846516,-1405.01,0.00041499,120]
[400007795,1767013846525,-500.0,0.00041499,120]
[400007796,1767013846535,-500.0,0.00041499,120]
[400007797,1767013846544,-500.0,0.00041499,120]
[400007798,1767013846552,-500.0,0.00041499,120]
[400007799,1767013846561,-500.0,0.00041499,120]
[400007800,1767013846572,-500.0,0.00041499,120]
[400007801,1767013846582,-205.461604,0.00041499,120]
[400007802,1767013846591,-179.25,0.000415,14]
[400007803,1767013846601,-700000.0,0.000415,10]
[400007804,1767013846610,-167839.53569782,0.000415,9]
[400007805,1767013846619,-610.95,0.000415,2]
[400007806,1767013846628,-12215.06572441,0.000415,30]
[400007807,1767013846637,-150.0,0.000415,24]
[400007808,1767013846646,-40161.12,0.000415,14]
[400007809,1767013846656,-3751.35,0.000415,30]
[400007810,1767013846666,-200.0,0.000415,7]
[400007811,1767013846675,-200.0,0.000415,7]
[400007812,1767013846684,-500.0,0.000415,60]
[400007813,1767013846693,-500.0,0.000415,60]
[400007814,1767013846702,-554.94073115,0.000415,60]
[400007815,1767013846711,-5003.65041,0.000415,9]
[400007816,1767013846720,-5003.65041,0.000415,9]
[400007817,1767013846730,-5003.65041,0.000415,9]
[400007818,1767013846739,-5003.6504,0.000415,9]
[400007819,1767013846748,-5003.65041,0.000415,9]
[400007820,1767013846758,-150.0,0.00041531,120]
[400007821,1767013846767,-156.34110834,0.00041568,120]
[400007822,1767013846779,-2000.0,0.000416,30]
[400007823,1767013846791,-199.0,0.00041614,30]
[400007824,1767013846801,-1056.16134167,0.00041621,4]
[400007825,1767013846811,-554.77,0.00041644,30]
[400007826,1767013846823,-554.77,0.00041644,30]
[400007827,1767013846833,-554.77,0.00041644,30]
[400007828,1767013846843,-554.77,0.00041644,30]
[400007829,1767013846852,-554.77,0.00041644,30]
[400007830,1767013846862,-554.77,0.00041644,30]
[400007831,1767013846878,-554.77,0.00041644,30]
[400007832,1767013846888,-554.77,0.00041644,30]
[400007833,1767013846898,-554.77,0.00041644,30]
[400007834,1767013846908,-554.77,0.00041644,30]
[400007835,1767013846919,-554.77,0.00041644,30]
[400007836,1767013846928,-554.77,0.00041644,30]
[400007837,1767013846939,-554.77,0.00041644,30]
[400007838,1767013846949,-554.77,0.00041644,30]
[400007839,1767013846960,-554.77,0.00041644,30]
[400007840,1767013846971,-554.77,0.00041644,30]
[400007841,1767013846981,-554.77,0.00041644,30]
[400007842,1767013846990,-554.77,0.00041644,30]
[400007843,1767013847000,-554.77,0.00041644,30]
[400007844,1767013847009,-554.77,0.00041644,30]
[400007845,1767013847019,-554.77,0.00041644,30]
[400007846,1767013847031,-554.77,0.00041644,30]
[400007847,1767013847040,-554.77,0.00041644,30]
[400007848,1767013847051,-554.77,0.00041644,30]
[400007849,1767013847062,-554.77,0.00041644,30]
[400007850,1767013847072,-554.77,0.00041644,30]
[400007851,1767013847083,-554.77,0.00041644,30]
[400007852,1767013847095,-554.77,0.00041644,30]
[400007853,1767013847105,-554.77,0.00041644,30]
[400007854,1767013847114,-554.77,0.00041644,30]
[400007855,1767013847123,-554.77,0.00041644,30]
[400007856,1767013847132,-554.77,0.00041644,30]
[400007857,1767013847142,-554.77,0.00041644,30]
[400007858,1767013847151,-554.77,0.00041644,30]
[400007859,1767013847166,-554.77,0.00041644,30]
[400007860,1767013847177,-554.77,0.00041644,30]
[400007861,1767013847186,-554.77,0.00041644,30]
[400007862,1767013847197,-554.77,0.00041644,30]
[400007863,1767013847209,-554.77,0.00041644,30]
[400007864,1767013847221,-554.77,0.00041644,30]
[400007865,1767013847231,-554.77,0.00041644,30]
[400007866,1767013847240,-554.77,0.00041644,30]
[400007867,1767013847249,-554.77,0.00041644,30]
[400007868,1767013847259,-554.77,0.00041644,30]
[400007869,1767013847270,-554.77,0.00041644,30]
[400007870,1767013847280,-554.77,0.00041644,30]
[400007871,1767013847289,-554.77,0.00041644,30]
[400007872,1767013847299,-1349.9360666,0.00041665,2]
[400007873,1767013847309,-1351.0,0.00041688,7]
[400007874,1767013847318,-150.0,0.00041699,30]
[400007875,1767013847329,-150.0,0.00041699,30]
[400007876,1767013847339,-150.0,0.00041699,30]
[400007877,1767013847348,-150.0,0.00041699,30]
[400007878,1767013847357,-150.0,0.00041699,30]
[400007879,1767013847367,-322.78,0.00041699,30]
[400007880,1767013847376,-170.0,0.000417,120]
[400007881,1767013847386,-158.0,0.000417,120]
[400007882,1767013847396,-150.0,0.00041724,30]
[400007883,1767013847405,-634.97591623,0.00041794,120]
[400007884,1767013847414,-846.86,0.00041794,120]
[400007885,1767013847424,-672.91,0.00041794,120]
[400007886,1767013847434,-1405.01,0.00041794,120]
[400007887,1767013847444,-7313.15432604,0.00041795,2]
[400007888,1767013847454,-213.92577277,0.00041808,14]
[400007889,1767013847465,-213.92577277,0.00041808,14]
[400007890,1767013847474,-213.92577277,0.00041808,14]
[400007891,1767013847485,-481.65,0.00041836,30]
[400007892,1767013847495,-481.65,0.00041836,30]
[400007893,1767013847504,-481.65,0.00041836,30]
[400007894,1767013847514,-481.65,0.00041836,30]
[400007895,1767013847523,-481.65,0.00041836,30]
[400007896,1767013847533,-481.65,0.00041836,30]
[400007897,1767013847543,-481.65,0.00041836,30]
[400007898,1767013847556,-481.65,0.00041836,30]
[400007899,1767013847566,-481.65,0.00041836,30]
[400007900,1767013847576,-481.65,0.00041836,30]
[400007901,1767013847585,-481.65,0.00041836,30]
[400007902,1767013847595,-481.65,0.00041836,30]
[400007903,1767013847604,-481.65,0.00041836,30]
[400007904,1767013847613,-481.65,0.00041836,30]
[400007905,1767013847623,-481.65,0.00041836,30]
[400007906,1767013847632,-481.65,0.00041836,30]
[400007907,1767013847642,-481.65,0.00041836,30]
[400007908,1767013847651,-481.65,0.00041836,30]
[400007909,1767013847661,-481.65,0.00041836,30]
[400007910,1767013847671,-481.65,0.00041836,30]
[400007911,1767013847682,-481.65,0.00041836,30]
[400007912,1767013847692,-481.65,0.00041836,30]
[400007913,1767013847701,-481.65,0.00041836,30]
[400007914,1767013847711,-481.65,0.00041836,30]
[400007915,1767013847721,-481.65,0.00041836,30]
[400007916,1767013847731,-481.65,0.00041836,30]
[400007917,1767013847740,-1056.16134167,0.00041842,5]
[400007918,1767013847750,-200.0,0.00041915,7]
[400007919,1767013847760,-1349.9360666,0.00041929,2]
[400007920,1767013847769,-166.86,0.00041973,30]
[400007921,1767013847779,-150.0,0.00041973,30]
[400007922,1767013847788,-150.0,0.00041973,30]
[400007923,1767013847799,-150.0,0.00041973,30]
[400007924,1767013847810,-150.0,0.00041973,30]
[400007925,1767013847819,-150.0,0.00041973,30]
[400007926,1767013847829,-150.0,0.00041973,30]
[400007927,1767013847838,-150.0,0.00041973,30]
[400007928,1767013847850,-150.0,0.00041973,30]
[400007929,1767013847859,-150.0,0.00041973,30]
[400007930,1767013847874,-373.64853929,0.00041996,120]
[400007931,1767013847884,-313.99302103,0.00041999,30]
[400007932,1767013847894,-50000.0,0.00042,42]
[400007933,1767013847904,-50000.0,0.00042,52]
[400007934,1767013847915,-160.0,0.00042,41]
[400007935,1767013847926,-480.18324676,0.00042,2]
[400007936,1767013847940,-3751.35,0.00042,30]
[400007937,1767013847951,-178.66,0.00042,30]
[400007938,1767013847961,-178.66,0.00042,30]
[400007939,1767013847971,-178.66,0.00042,30]
[400007940,1767013847980,-199.0,0.0004203,30]
[400007941,1767013847990,-500.0,0.00042048,60]
[400007942,1767013847999,-500.0,0.00042048,60]
[400007943,1767013848008,-1056.16134167,0.00042064,6]
[400007944,1767013848018,-40161.12,0.000421,14]
[400007945,1767013848027,-208.62,0.00042136,14]
[400007946,1767013848106,-300.0,0.00042181,2]
[400007947,1767013848116,-1349.9360666,0.00042194,2]
[400007948,1767013848125,-300.0,0.00042199,2]
[400007949,1767013848135,-170.0,0.000422,120]
[400007950,1767013848145,-158.0,0.000422,120]
[400007951,1767013848154,-208.62,0.00042273,14]
[400007952,1767013848164,-1056.16134167,0.00042285,7]
[400007953,1767013848173,-200.0,0.00042334,7]
[400007954,1767013848182,-1351.0,0.00042334,7]
[400007955,1767013848191,-9435.14450421,0.00042402,30]
[400007956,1767013848200,-208.62,0.00042409,14]
[400007957,1767013848210,-199.0,0.00042446,30]
[400007958,1767013848219,-300.0,0.00042451,2]
[400007959,1767013848228,-1349.9360666,0.00042458,2]
[400007960,1767013848237,-300.0,0.00042462,2]
[400007961,1767013848247,-846.86,0.00042494,120]
[400007962,1767013848257,-672.91,0.00042494,120]
[400007963,1767013848266,-1405.01,0.00042494,120]
[400007964,1767013848276,-73121.10157722,0.00042495,4]
[400007965,1767013848285,-300.0,0.00042499,2]
[400007966,1767013848297,-3751.35,0.000425,30]
[400007967,1767013848312,-152.426097,0.000425,14]
[400007968,1767013848322,-4000.0,0.000425,7]
[400007969,1767013848331,-1056.16134167,0.00042506,7]
[400007970,1767013848340,-233.60783476,0.00042516,2]
[400007971,1767013848350,-293.90223746,0.00042516,2]
[400007972,1767013848359,-834.28232255,0.00042516,2]
[400007973,1767013848368,-3551.60044538,0.00042536,2]
[400007974,1767013848378,-299.73918347,0.00042552,120]
[400007975,1767013848387,-834.28232251,0.00042557,2]
[400007976,1767013848396,-213.10198804,0.00042568,120]
[400007977,1767013848406,-166.58,0.00042573,14]
[400007978,1767013848415,-150.0,0.00042575,30]
[400007979,1767013848424,-150.0,0.00042575,30]
[400007980,1767013848434,-150.00000001,0.00042575,30]
[400007981,1767013848443,-150.0,0.00042575,30]
[400007982,1767013848452,-150.0,0.00042575,30]
[400007983,1767013848462,-150.0,0.00042575,30]
[400007984,1767013848471,-191.34125565,0.00042593,120]
[400007985,1767013848480,-846.86,0.00042595,120]
[400007986,1767013848489,-846.86,0.00042595,120]
[400007987,1767013848499,-846.86,0.00042595,120]
[400007988,1767013848509,-846.86,0.00042595,120]
[400007989,1767013848519,-846.86,0.00042595,120]
[400007990,1767013848528,-846.86,0.00042595,120]
[400007991,1767013848537,-846.86,0.00042595,120]
[400007992,1767013848547,-672.91,0.00042595,120]
[400007993,1767013848556,-672.91,0.00042595,120]
[400007994,1767013848566,-672.91,0.00042595,120]
[400007995,1767013848575,-672.91,0.00042595,120]
[400007996,1767013848585,-672.91,0.00042595,120]
[400007997,1767013848594,-672.91,0.00042595,120]
[400007998,1767013848604,-672.91,0.00042595,120]
[400007999,1767013848613,-1405.01,0.00042595,120]
[400008000,1767013848622,-1405.01,0.00042595,120]
[400008001,1767013848631,-1405.01,0.00042595,120]
[400008002,1767013848641,-1405.01,0.00042595,120]
[400008003,1767013848651,-1405.01,0.00042595,120]
[400008004,1767013848660,-1405.01,0.00042595,120]
[400008005,1767013848669,-1405.01,0.00042595,120]
[400008006,1767013848678,-500.0,0.00042596,60]
[400008007,1767013848690,-500.0,0.00042596,60]
[400008008,1767013848699,-834.28232251,0.00042599,2]
[400008009,1767013848709,-256.289732,0.000426,120]
[400008010,1767013848719,-7219.67490846,0.000426,15]
[400008011,1767013848728,-1556427.75736024,0.00042613,30]
[400008012,1767013849350,-151.0,0.00015807,2]
[400008013,1767013849360,-151.0,0.00015901,2]
[400008014,1767013849369,-1000.0,0.0001925,2]
[400008015,1767013849379,-1000.0,0.00019972,2]
[400008016,1767013849389,-1000.0,0.00020694,2]
[400008017,1767013849398,-1199.0,0.00021041,2]
[400008018,1767013849409,-1000.0,0.00021416,2]
[400008019,1767013849419,-1000.0,0.00022138,2]
[400008020,1767013849428,-1199.0,0.00024041,2]
[400008021,1767013849437,-1199.0,0.00027041,2]
[400008022,1767013849447,-1199.0,0.00030041,2]
[400008023,1767013849457,-554.77,0.00041644,30]
[400008024,1767013849467,-481.65,0.00041836,30]
[400008025,1767013849478,-1171.20174631,0.00042613,30]
[400008026,1767013849491,-342.43173957,0.00042613,30]
[400008027,1767013849502,-486.67791843,0.00042613,30]
[400008030,1767014055574,1600.0,0.00025308,120]
[400008053,1767014380498,9190.83,0.00012829,2]
[400008054,1767014380520,809.17,0.00012829,2]
[400008055,1767014405913,1304.6,0.00012829,2]
[400008089,1767014731916,153.87,7.76e-05,2]
[400008090,1767014732115,153.87,8.216e-05,2]
[400008091,1767014732324,153.87,8.673e-05,2]
[400008092,1767014732529,153.87,9.129e-05,2]
[400008093,1767014732722,153.87,9.586e-05,2]
[400008094,1767014732923,153.87,0.00010042,2]
[400008095,1767014733142,153.87,0.00010499,2]
[400008096,1767014733365,153.87,0.00010955,2]
[400008097,1767014733579,153.87,0.00011412,2]
[400008098,1767014733807,153.87,0.00011868,2]
[400008099,1767014734228,153.87,0.00012324,2]
[400008100,1767014734409,153.87,0.00012781,2]
[400008102,1767014765298,456.92,0.00030137,120]
[400008109,1767014920187,173.32445494,0.0003013,120]
[400008110,1767014924849,571.15185951,0.0003,120]
[400008111,1767014925568,258.27698107,0.0003,120]
[400008123,1767015031779,-153.87,0.00013237,2]
[400008124,1767015031788,-153.87,0.00013694,2]
[400008125,1767015031797,-300.0,0.00013976,2]
[400008126,1767015031806,-168.58440645,0.00013976,2]
[400008127,1767015031817,-209.04114882,0.00013976,2]
[400008128,1767015031826,-153.87,0.0001415,2]
[400008129,1767015031835,-182.43901016,0.00014348,2]
[400008130,1767015031846,-317.56098984,0.00014348,2]
[400008131,1767015031855,-334.20069519,0.0001445,2]
[400008132,1767015031864,-300.0,0.00014561,2]
[400008133,1767015031873,-153.87,0.00014607,2]
[400008134,1767015031882,-300.0,0.00014618,2]
[400008135,1767015031891,-8529.51990275,0.00014619,2]
[400008136,1767015031949,-7121.84605827,0.00014619,2]
[400008137,1767015031960,-2653.7957141,0.00014619,2]
[400008138,1767015032008,-3040.84055057,0.00014619,2]
[400008140,1767015032018,-2609.5598784,0.00014619,2]
[400008151,1767015037806,-95667.32971042,0.00014619,2]
[400008152,1767015037820,-1848.68111482,0.00014619,2]
[400008153,1767015037866,-13774.66536913,0.00014619,2]
[400008158,1767015040050,-864753.76170154,0.00014619,2]
[400008159,1767015040061,-284.189888,0.00014619,2]
[400008160,1767015040072,-410.2886,0.00014619,2]
[400008161,1767015040082,-5985.12245235,0.0001462,2]
[400008162,1767015040091,-10810.69,0.00014686,2]
[400008163,1767015040101,-500.0,0.00014718,2]
[400008164,1767015040112,-212.24311501,0.00014718,2]
[400008165,1767015040122,-260.21402099,0.00014718,2]
[400008166,1767015040131,-500.0,0.00014718,2]
[400008167,1767015040141,-608.69788774,0.00014718,2]
[400008168,1767015040151,-500.0,0.00014718,2]
[400008169,1767015040160,-500.0,0.00014718,2]
[400008170,1767015040170,-500.0,0.00014718,2]
[400008171,1767015040183,-500.0,0.00014718,2]
[400008172,1767015040193,-292.7342488,0.00014718,2]
[400008173,1767015040202,-257.36957998,0.00014718,2]
[400008174,1767015040212,-500.0,0.00014718,2]
[400008175,1767015040222,-500.0,0.00014718,2]
[400008176,1767015040236,-500.0,0.00014718,2]
[400008177,1767015040247,-500.0,0.00014718,2]
[400008178,1767015040256,-500.0,0.00014718,2]
[400008179,1767015040266,-500.0,0.00014718,2]
[400008180,1767015040275,-500.0,0.00014718,2]
[400008181,1767015040284,-500.0,0.00014718,2]
[400008182,1767015040293,-500.0,0.00014718,2]
[400008183,1767015040302,-274.25897022,0.00014718,2]
[400008184,1767015040311,-500.0,0.00014718,2]
[400008185,1767015040320,-500.0,0.00014718,2]
[400008186,1767015040329,-500.0,0.00014718,2]
[400008187,1767015040339,-500.0,0.00014718,2]
[400008188,1767015040347,-500.0,0.00014718,2]
[400008189,1767015040357,-500.0,0.00014719,2]
[400008190,1767015040367,-500.0,0.00014719,2]
[400008191,1767015040377,-500.0,0.00014719,2]
[400008192,1767015040387,-500.0,0.00014719,2]
[400008193,1767015040397,-500.0,0.00014719,2]
[400008194,1767015040406,-504.56873782,0.00014719,2]
[400008195,1767015040415,-500.0,0.00014719,2]
[400008196,1767015040425,-500.0,0.00014719,2]
[400008197,1767015040434,-588.05577611,0.00014719,2]
[400008198,1767015040444,-500.0,0.00014719,2]
[400008200,1767015040454,-500.0,0.00014719,2]
[400008201,1767015040464,-500.0,0.00014719,2]
[400008202,1767015040473,-500.0,0.00014719,2]
[400008203,1767015040482,-795.492,0.00014719,2]
[400008204,1767015040491,-500.0,0.00014719,2]
[400008205,1767015040501,-500.0,0.00014719,2]
[400008206,1767015040510,-500.0,0.00014719,2]
[400008207,1767015040519,-500.0,0.00014719,2]
[400008208,1767015040528,-500.0,0.00014719,2]
[400008209,1767015040538,-500.0,0.00014719,2]
[400008210,1767015040547,-500.0,0.00014719,2]
[400008212,1767015040556,-500.0,0.00014719,2]
[400008213,1767015040566,-500.0,0.00014719,2]
[400008214,1767015040576,-298.64,0.00014719,2]
[400008215,1767015040585,-3126.58799905,0.0001482,2]
[400008216,1767015040595,-150.99,0.0001492,2]
[400008217,1767015040604,-9999.99,0.0001492,2]
[400008218,1767015040614,-9999.99,0.0001492,2]
[400008219,1767015040623,-153.87,0.00015063,2]
[400008220,1767015040633,-1000.0,0.0001552,2]
[400008221,1767015040642,-153.87,0.0001552,2]
[400008222,1767015040652,-165.28,0.00015636,2]
[400008223,1767015040661,-186.85634415,0.00015807,2]
[400008224,1767015040671,-268.22,0.00015904,2]
[400008225,1767015040681,-500.0,0.00015973,2]
[400008226,1767015040690,-22114.66624448,0.00016,2]
[400008227,1767015040700,-420.0,0.00016005,2]
[400008228,1767015040710,-847.0,0.00016082,2]
[400008229,1767015040719,-150.0,0.00016082,2]
[400008230,1767015040732,-150.0,0.00016082,2]
[400008231,1767015040742,-847.0,0.00016109,2]
[400008232,1767015040754,-200.0,0.00016109,2]
[400008233,1767015040763,-847.0,0.00016137,2]
[400008234,1767015040773,-847.0,0.00016164,2]
[400008235,1767015040782,-847.0,0.00016192,2]
[400008236,1767015040792,-5000.00643706,0.000162,5]
[400008237,1767015040802,-847.0,0.00016219,2]